fUSD/lending_fUSD_20260617
["ID","MTS","AMOUNT","RATE_DAILY","PERIOD"]
[425223752,1781625614000,-3416.13386082,8e-05,2]
[425223754,1781625641000,-3416.13386082,8e-05,2]
[425223756,1781625667000,-235.41045973,7.999e-05,2]
[425223757,1781625667000,-1147.0980087,8e-05,2]
[425223764,1781625862000,-1043.27722794,8e-05,2]
[425223765,1781625888000,-216.13448155,8.002e-05,2]
[425223766,1781625892000,-300.0,8.393e-05,2]
[425223767,1781625892000,-250.0,8.393e-05,2]
[425223768,1781625892000,-3594.56294289,8.8e-05,2]
[425223769,1781625892000,-193.51482873,8.8e-05,2]
[425223771,1781625892000,-250.0,8.8e-05,2]
[425223773,1781625892000,-160.0,8.808e-05,2]
[425223770,1781625892000,-300.0,8.8e-05,2]
[425223775,1781625892000,-151.0,9.955e-05,2]
[425223776,1781625892000,-430.51,0.000101,2]
[425223774,1781625892000,-160.0,8.808e-05,2]
[425223777,1781625892000,-150.0,0.00010305,2]
[425223778,1781625892000,-3646.0,0.00010306,2]
[425223779,1781625892000,-3558.0,0.00010306,2]
[425223772,1781625892000,-500.0,8.8e-05,2]
[425223781,1781625892000,-934.0,0.00010306,2]
[425223780,1781625892000,-419.0,0.00010306,2]
[425223791,1781625892000,-151.0,0.00012,2]
[425223790,1781625892000,-543.07,0.00011988,2]
[425223792,1781625892000,-151.0,0.00012,2]
[425223789,1781625892000,-150.0,0.00011314,2]
[425223788,1781625892000,-381.55,0.00011,2]
[425223793,1781625892000,-151.0,0.00012,2]
[425223787,1781625892000,-163.7,0.0001076,2]
[425223784,1781625892000,-1275.0,0.00010306,2]
[425223785,1781625892000,-1359.0,0.00010306,2]
[425223782,1781625892000,-6078.0,0.00010306,2]
[425223783,1781625892000,-383.0,0.00010306,2]
[425223786,1781625892000,-152.0,0.00010606,2]
[425223807,1781625893000,-3558.0,0.00013306,2]
[425223805,1781625893000,-2825.93677502,0.000133,2]
[425223803,1781625893000,-9512.21480497,0.00013,5]
[425223804,1781625893000,-500.0,0.00013151,2]
[425223802,1781625893000,-280.84,0.00012795,2]
[425223800,1781625893000,-200.1,0.00012642,2]
[425223799,1781625893000,-463.221,0.00012427,2]
[425223797,1781625893000,-228.86209613,0.00012427,2]
[425223794,1781625893000,-151.0,0.00012,2]
[425223795,1781625893000,-329.45,0.00012156,2]
[425223796,1781625893000,-150.0,0.00012304,2]
[425223808,1781625893000,-419.0,0.00013306,2]
[425223798,1781625893000,-342.36400846,0.00012427,2]
[425223806,1781625893000,-3646.0,0.00013306,2]
[425223801,1781625893000,-456.52366549,0.00012698,2]
[425223810,1781625893000,-934.0,0.00013306,2]
[425223823,1781625893000,-3000.0,0.00013541,2]
[425223821,1781625893000,-152.0,0.00013522,7]
[425223822,1781625893000,-152.0,0.00013522,7]
[425223820,1781625893000,-643.73702034,0.000135,2]
[425223819,1781625893000,-174198.7276,0.00013498,2]
[425223816,1781625893000,-152.0,0.00013468,7]
[425223818,1781625893000,-152.0,0.00013495,7]
[425223809,1781625893000,-6078.0,0.00013306,2]
[425223817,1781625893000,-543.07,0.00013486,2]
[425223814,1781625893000,-157.57000324,0.000134,2]
[425223815,1781625893000,-152.0,0.00013452,7]
[425223813,1781625893000,-2500.0,0.00013398,2]
[425223811,1781625893000,-1275.0,0.00013306,2]
[425223812,1781625893000,-1359.0,0.00013306,2]
[425223824,1781625893000,-157.57000318,0.00013567,2]
[425223837,1781625894000,-504.85617891,0.00013698,2]
[425223838,1781625894000,-500.0,0.00013698,2]
[425223836,1781625894000,-500.0,0.00013698,2]
[425223835,1781625894000,-500.0,0.00013698,2]
[425223834,1781625894000,-500.0,0.00013698,2]
[425223833,1781625894000,-500.0,0.00013698,2]
[425223828,1781625894000,-1081.0,0.00013598,5]
[425223832,1781625894000,-578.5499992,0.00013698,2]
[425223830,1781625894000,-1422.0775323,0.00013598,2]
[425223827,1781625894000,-156.0,0.00013598,5]
[425223829,1781625894000,-154.42744157,0.00013598,2]
[425223825,1781625894000,-300.0,0.00013597,2]
[425223839,1781625894000,-500.0,0.00013698,2]
[425223831,1781625894000,-1500000.0,0.00013598,2]
[425223826,1781625894000,-671.15011359,0.00013597,2]
[425223840,1781625894000,-500.0,0.00013698,2]
[425223844,1781625894000,-500.0,0.00013698,2]
[425223841,1781625894000,-500.0,0.00013698,2]
[425223856,1781625894000,-500.0,0.00013698,2]
[425223854,1781625894000,-1037.85,0.00013698,2]
[425223853,1781625894000,-1037.85,0.00013698,2]
[425223852,1781625894000,-1037.85,0.00013698,2]
[425223851,1781625894000,-1037.85,0.00013698,2]
[425223848,1781625894000,-283.18188354,0.00013698,2]
[425223855,1781625894000,-1037.85,0.00013698,2]
[425223849,1781625894000,-1037.85,0.00013698,2]
[425223846,1781625894000,-500.0,0.00013698,2]
[425223847,1781625894000,-564.95439082,0.00013698,2]
[425223845,1781625894000,-500.0,0.00013698,2]
[425223842,1781625894000,-500.0,0.00013698,2]
[425223843,1781625894000,-500.0,0.00013698,2]
[425223850,1781625894000,-1037.85,0.00013698,2]
[425223869,1781625895000,-261.36,0.00013706,2]
[425223867,1781625895000,-224.0,0.00013699,2]
[425223868,1781625895000,-305.0,0.00013699,2]
[425223866,1781625895000,-159.0,0.00013699,2]
[425223865,1781625895000,-302.0,0.00013699,2]
[425223870,1781625895000,-160.0,0.0001372,2]
[425223864,1781625895000,-151.0,0.00013699,2]
[425223861,1781625895000,-500.0,0.00013698,2]
[425223859,1781625895000,-500.0,0.00013698,2]
[425223858,1781625895000,-500.0,0.00013698,2]
[425223857,1781625895000,-500.0,0.00013698,2]
[425223863,1781625895000,-500.0,0.00013698,2]
[425223871,1781625895000,-157.57000318,0.00013733,2]
[425223860,1781625895000,-500.0,0.00013698,2]
[425223873,1781625895000,-154.42744153,0.00013815,2]
[425223872,1781625895000,-643.73702032,0.00013741,2]
[425223885,1781625895000,-412.55,0.00014305,2]
[425223884,1781625895000,-644.15,0.00014305,2]
[425223883,1781625895000,-482.29,0.00014288,2]
[425223882,1781625895000,-154.42744153,0.00014249,2]
[425223880,1781625895000,-643.73702032,0.00014224,2]
[425223862,1781625895000,-500.0,0.00013698,2]
[425223879,1781625895000,-1500.0,0.00014116,2]
[425223881,1781625895000,-157.57000318,0.00014233,2]
[425223878,1781625895000,-157.57000318,0.00014067,2]
[425223876,1781625895000,-250.0,0.00014,2]
[425223877,1781625895000,-154.42744153,0.00014032,2]
[425223875,1781625895000,-643.73702032,0.00013983,2]
[425223874,1781625895000,-157.57000318,0.000139,2]
[425223903,1781625896000,-1555.5,0.00014664,2]
[425223901,1781625896000,-700.0,0.00014588,2]
[425223900,1781625896000,-500.0,0.00014588,2]
[425223899,1781625896000,-500.0,0.00014588,2]
[425223898,1781625896000,-157.57000318,0.00014567,2]
[425223896,1781625896000,-9999.99,0.00014504,2]
[425223894,1781625896000,-154.42744153,0.00014466,2]
[425223895,1781625896000,-1041.205,0.00014487,2]
[425223890,1781625896000,-310.0,0.000144,2]
[425223892,1781625896000,-157.57000318,0.000144,2]
[425223902,1781625896000,-2000.0,0.000146,2]
[425223891,1781625896000,-779.0,0.000144,2]
[425223888,1781625896000,-10488.55800005,0.0001439,2]
[425223889,1781625896000,-1241.43706407,0.000144,2]
[425223887,1781625896000,-482.28,0.0001432,2]
[425223886,1781625896000,-644.14,0.00014319,2]
[425223893,1781625896000,-643.73702032,0.00014465,2]
[425223904,1781625896000,-160.0,0.0001468,2]
[425223897,1781625896000,-150.99,0.00014504,2]
[425223907,1781625896000,-1078.02553589,0.000147,2]
[425223905,1781625896000,-154.42744153,0.00014683,2]
[425223922,1781625896000,-500.0,0.00014794,7]
[425223924,1781625896000,-500.0,0.00014794,7]
[425223918,1781625896000,-500.0,0.00014794,7]
[425223920,1781625896000,-500.0,0.00014794,7]
[425223919,1781625896000,-500.0,0.00014794,7]
[425223923,1781625896000,-500.0,0.00014794,7]
[425223921,1781625896000,-500.0,0.00014794,7]
[425223914,1781625896000,-500.0,0.00014794,7]
[425223917,1781625896000,-500.0,0.00014794,7]
[425223916,1781625896000,-500.0,0.00014794,7]
[425223915,1781625896000,-500.0,0.00014794,7]
[425223909,1781625896000,-1103.71757191,0.000147,2]
[425223910,1781625896000,-1927.01851413,0.000147,2]
[425223908,1781625896000,-1117.40098636,0.000147,2]
[425223906,1781625896000,-1077.23248575,0.000147,2]
[425223911,1781625896000,-12768.21533022,0.000147,2]
[425223913,1781625896000,-157.57000318,0.00014733,2]
[425223912,1781625896000,-643.73702032,0.00014707,2]
[425223941,1781625897000,-543.07,0.00014985,2]
[425223939,1781625897000,-627.62194,0.0001497,2]
[425223942,1781625897000,-500.0,0.00014999,2]
[425223925,1781625897000,-500.0,0.00014794,7]
[425223940,1781625897000,-1325.1062655,0.00014984,2]
[425223938,1781625897000,-643.73702032,0.00014948,2]
[425223936,1781625897000,-157.57000318,0.000149,2]
[425223937,1781625897000,-627.62194,0.0001492,2]
[425223926,1781625897000,-500.0,0.00014794,7]
[425223934,1781625897000,-154.42744153,0.000149,2]
[425223932,1781625897000,-627.62194,0.0001488,2]
[425223933,1781625897000,-3000.0,0.000149,2]
[425223931,1781625897000,-200.0,0.00014847,2]
[425223929,1781625897000,-500.0,0.00014794,7]
[425223927,1781625897000,-500.0,0.00014794,7]
[425223930,1781625897000,-401.61293977,0.00014794,7]
[425223928,1781625897000,-500.0,0.00014794,7]
[425223943,1781625897000,-500.0,0.00014999,2]
[425223935,1781625897000,-8313.03411155,0.000149,2]
[425223947,1781625897000,-500.0,0.00014999,2]
[425223950,1781625897000,-1037.85,0.00014999,2]
[425223946,1781625897000,-500.0,0.00014999,2]
[425223945,1781625897000,-500.0,0.00014999,2]
[425223964,1781625897000,-1037.85117384,0.00014999,2]
[425223965,1781625897000,-500.0,0.00014999,2]
[425223963,1781625897000,-1037.85,0.00014999,2]
[425223961,1781625897000,-1037.85,0.00014999,2]
[425223960,1781625897000,-1037.85,0.00014999,2]
[425223962,1781625897000,-1037.85,0.00014999,2]
[425223959,1781625897000,-1037.85,0.00014999,2]
[425223957,1781625897000,-1037.85,0.00014999,2]
[425223953,1781625897000,-1037.85,0.00014999,2]
[425223958,1781625897000,-1037.85,0.00014999,2]
[425223955,1781625897000,-1037.85,0.00014999,2]
[425223954,1781625897000,-1037.85,0.00014999,2]
[425223952,1781625897000,-1037.85,0.00014999,2]
[425223951,1781625897000,-1037.85,0.00014999,2]
[425223949,1781625897000,-1037.85,0.00014999,2]
[425223948,1781625897000,-1037.85,0.00014999,2]
[425223956,1781625897000,-1037.85,0.00014999,2]
[425223944,1781625897000,-500.0,0.00014999,2]
[425223969,1781625898000,-500.0,0.00014999,2]
[425223967,1781625898000,-500.0,0.00014999,2]
[425223968,1781625898000,-500.0,0.00014999,2]
[425223966,1781625898000,-500.0,0.00014999,2]
[425223971,1781625898000,-251.96,0.00014999,2]
[425223973,1781625898000,-127527.05011604,0.00015,2]
[425223972,1781625898000,-300.0,0.00014999,2]
[425223970,1781625898000,-500.0,0.00014999,2]
[425223974,1781625901000,500.0,0.00013698,2]
[425223975,1781625901000,500.0,0.00013698,2]
[425223978,1781625901000,500.0,0.00013698,2]
[425223976,1781625901000,500.0,0.00013698,2]
[425223979,1781625901000,358.49953064,0.00011781,2]
[425223980,1781625901000,500.0,0.00013698,2]
[425223981,1781625901000,500.0,0.00013698,2]
[425223977,1781625901000,500.0,0.00013698,2]
[425223982,1781625908000,320.0,0.00013698,2]
[425223983,1781625914000,311.0,0.00013698,2]
[425223984,1781625916000,151.0,0.00013698,2]
[425223985,1781625916000,8512.14355348,0.000147,2]
[425223987,1781625920000,167.40539236,0.00014899,2]
[425223986,1781625920000,934.0,0.00011006,2]
[425223988,1781625921000,934.0,0.00014006,2]
[425223989,1781625921000,2500.0,0.000134,2]
[425223990,1781625926000,167.40539235,0.000149,2]
[425223993,1781625929000,166.66,0.00014409,2]
[425223992,1781625929000,166.66,0.00014118,2]
[425223991,1781625929000,166.66,0.00013827,2]
[425223995,1781625930000,500.0,0.00014588,2]
[425223994,1781625930000,166.66,0.000147,2]
[425223997,1781625933000,419.0,0.00014006,2]
[425223996,1781625933000,419.0,0.00011006,2]
[425223998,1781625936000,2955.358459,0.00014924,2]
[425223999,1781625940000,316.0,0.000144,2]
[425224000,1781625945000,482.05,0.00014328,2]
[425224003,1781625947000,255.48865476,0.000149,2]
[425224001,1781625947000,1134.10575017,0.0001444,2]
[425224004,1781625947000,152.0,0.00014766,7]
[425224002,1781625947000,152.0,0.00014762,7]
[425224005,1781625952000,1500000.0,0.00013398,2]
[425224006,1781625961000,1066.38649616,0.000149,2]
[425224008,1781625964000,488.01934891,0.00010305,2]
[425224007,1781625964000,500.0,0.00010305,2]
[425224009,1781625971000,171.66,0.00014113,2]
[425224010,1781625975000,1228.0,0.00011006,2]
[425224011,1781625976000,1228.0,0.00014006,2]
[425224012,1781625977000,200.0,0.00014113,2]
[425224013,1781625980000,500.0,0.00014588,2]
[425224019,1781625983000,621.0,0.00014726,2]
[425224018,1781625983000,621.0,0.00014726,2]
[425224017,1781625983000,621.0,0.00014726,2]
[425224016,1781625983000,621.0,0.00014726,2]
[425224015,1781625983000,621.0,0.00014726,2]
[425224014,1781625983000,621.0,0.00014726,2]
[425224021,1781625983000,621.0,0.00014726,2]
[425224020,1781625983000,621.0,0.00014726,2]
[425224022,1781625984000,579.587,0.00014726,2]
[425224023,1781625985000,700.0,0.00014588,2]
[425224024,1781625999000,151.0,0.0001463,2]
[425224025,1781626007000,358.4,0.00011,2]
[425224026,1781626011000,500.0,0.00010305,2]
[425224028,1781626012000,649.9153335,0.00010305,2]
[425224027,1781626012000,500.0,0.00010305,2]
[425224029,1781626019000,2288.0,0.00030137,120]
[425224030,1781626022000,7020.26261246,0.000149,2]
[425224031,1781626037000,2389.26,0.00013698,2]
[425224034,1781626038000,2389.26,0.00013698,2]
[425224033,1781626038000,2389.26,0.00013698,2]
[425224032,1781626038000,2389.26,0.00013698,2]
[425224036,1781626039000,2389.26,0.00013698,2]
[425224035,1781626039000,2389.26,0.00013698,2]
[425224038,1781626040000,2389.26,0.00013698,2]
[425224037,1781626040000,2000.0,0.00013398,2]
[425224039,1781626064000,2500.0,0.00013398,2]
[425224047,1781626069000,-311.0,0.00014992,2]
[425224040,1781626069000,-152.0,0.00014992,2]
[425224042,1781626069000,-151.0,0.00014992,2]
[425224043,1781626069000,-314.0,0.00014992,2]
[425224044,1781626069000,-309.0,0.00014992,2]
[425224045,1781626069000,-318.0,0.00014992,2]
[425224046,1781626069000,-150.0,0.00014992,2]
[425224048,1781626069000,-320.0,0.00014992,2]
[425224041,1781626069000,-311.0,0.00014992,2]
[425224051,1781626069000,-151.0,0.00014992,2]
[425224049,1781626069000,-150.0,0.00014992,2]
[425224053,1781626069000,-310.0,0.00014992,2]
[425224054,1781626069000,-313.0,0.00014992,2]
[425224052,1781626069000,-312.0,0.00014992,2]
[425224056,1781626069000,-310.0,0.00014992,2]
[425224057,1781626069000,-166.66,0.00014992,2]
[425224055,1781626069000,-151.0,0.00014992,2]
[425224050,1781626069000,-295.0,0.00014992,2]
[425224074,1781626070000,-154.94073345,0.00014999,2]
[425224072,1781626070000,-500.0,0.00014999,2]
[425224070,1781626070000,-321.0,0.00014997,2]
[425224069,1781626070000,-160.0,0.00014995,2]
[425224068,1781626070000,-151.0,0.00014994,2]
[425224067,1781626070000,-317.0,0.00014993,2]
[425224066,1781626070000,-321.0,0.00014993,2]
[425224062,1781626070000,-314.0,0.00014992,2]
[425224064,1781626070000,-310.0,0.00014992,2]
[425224063,1781626070000,-315.0,0.00014992,2]
[425224075,1781626070000,-500.0,0.00014999,2]
[425224061,1781626070000,-200.0,0.00014992,2]
[425224059,1781626070000,-312.0,0.00014992,2]
[425224060,1781626070000,-151.0,0.00014992,2]
[425224058,1781626070000,-315.0,0.00014992,2]
[425224065,1781626070000,-153.0,0.00014992,2]
[425224073,1781626070000,-500.0,0.00014999,2]
[425224071,1781626070000,-191.61354424,0.00014999,2]
[425224076,1781626070000,-320.0,0.00014999,2]
[425224077,1781626070000,-314.0,0.00014999,2]
[425224092,1781626070000,-500.0,0.00014999,2]
[425224093,1781626070000,-500.0,0.00014999,2]
[425224090,1781626070000,-500.0,0.00014999,2]
[425224091,1781626070000,-500.0,0.00014999,2]
[425224088,1781626070000,-500.0,0.00014999,2]
[425224087,1781626070000,-500.0,0.00014999,2]
[425224085,1781626070000,-500.0,0.00014999,2]
[425224089,1781626070000,-500.0,0.00014999,2]
[425224086,1781626070000,-500.0,0.00014999,2]
[425224084,1781626070000,-300.0,0.00014999,2]
[425224082,1781626070000,-150.0,0.00014999,2]
[425224080,1781626070000,-316.0,0.00014999,2]
[425224081,1781626070000,-310.0,0.00014999,2]
[425224079,1781626070000,-320.0,0.00014999,2]
[425224078,1781626070000,-152.0,0.00014999,2]
[425224083,1781626070000,-500.0,0.00014999,2]
[425224109,1781626071000,-500.0,0.00014999,2]
[425224108,1781626071000,-500.0,0.00014999,2]
[425224110,1781626071000,-500.0,0.00014999,2]
[425224106,1781626071000,-500.0,0.00014999,2]
[425224107,1781626071000,-500.0,0.00014999,2]
[425224105,1781626071000,-500.0,0.00014999,2]
[425224103,1781626071000,-500.0,0.00014999,2]
[425224096,1781626071000,-500.0,0.00014999,2]
[425224101,1781626071000,-500.0,0.00014999,2]
[425224098,1781626071000,-500.0,0.00014999,2]
[425224100,1781626071000,-500.0,0.00014999,2]
[425224097,1781626071000,-500.0,0.00014999,2]
[425224099,1781626071000,-500.0,0.00014999,2]
[425224095,1781626071000,-500.0,0.00014999,2]
[425224094,1781626071000,-500.0,0.00014999,2]
[425224102,1781626071000,-500.0,0.00014999,2]
[425224111,1781626071000,-500.0,0.00014999,2]
[425224104,1781626071000,-500.0,0.00014999,2]
[425224114,1781626071000,-2389.26,0.00014999,2]
[425224129,1781626071000,-2389.46642198,0.00014999,2]
[425224128,1781626071000,-2389.26,0.00014999,2]
[425224125,1781626071000,-2389.26,0.00014999,2]
[425224124,1781626071000,-2389.26,0.00014999,2]
[425224126,1781626071000,-2389.26,0.00014999,2]
[425224123,1781626071000,-2389.26,0.00014999,2]
[425224122,1781626071000,-2389.26,0.00014999,2]
[425224127,1781626071000,-2389.26,0.00014999,2]
[425224120,1781626071000,-2389.26,0.00014999,2]
[425224121,1781626071000,-2389.26,0.00014999,2]
[425224113,1781626071000,-2389.26,0.00014999,2]
[425224118,1781626071000,-2389.26,0.00014999,2]
[425224112,1781626071000,-500.0,0.00014999,2]
[425224115,1781626071000,-2389.26,0.00014999,2]
[425224116,1781626071000,-2389.26,0.00014999,2]
[425224119,1781626071000,-2389.26,0.00014999,2]
[425224117,1781626071000,-2389.26,0.00014999,2]
[425224130,1781626072000,-200.0,0.00014999,2]
[425224140,1781626072000,-239612.91935451,0.00015,2]
[425224139,1781626072000,-1423384.33468468,0.00015,2]
[425224137,1781626072000,-20738.53007289,0.00015,2]
[425224134,1781626072000,-200.0,0.00015,2]
[425224136,1781626072000,-264.67395598,0.00015,2]
[425224135,1781626072000,-200.0,0.00015,2]
[425224133,1781626072000,-2500.0,0.00015,2]
[425224132,1781626072000,-207.05072423,0.00015,2]
[425224131,1781626072000,-600.0,0.00014999,2]
[425224138,1781626072000,-245111.65050804,0.00015,2]
[425224141,1781626094000,310.0,0.000149,2]
[425224142,1781626098000,350.0,0.00014331,2]
[425224143,1781626102000,431998.85247621,0.00013205,2]
[425224144,1781626103000,1068001.14752379,0.00013205,2]
[425224145,1781626108000,700.0,0.00014392,2]
[425224146,1781626114000,2328.0,0.000134,2]
[425224147,1781626116000,2328.0,0.0001468,2]
[425224148,1781626142000,250.0,0.0001475,2]
[425224150,1781626146000,-150.0,0.00014992,2]
[425224151,1781626146000,-311.0,0.00014992,2]
[425224149,1781626146000,-310.0,0.00014992,2]
[425224152,1781626146000,-151.0,0.00014992,2]
[425224154,1781626146000,-313.0,0.00014992,2]
[425224153,1781626146000,-151.0,0.00014992,2]
[425224155,1781626146000,-316.0,0.00014992,2]
[425224158,1781626146000,-311.0,0.00014992,2]
[425224156,1781626146000,-319.0,0.00014992,2]
[425224159,1781626146000,-151.0,0.00014992,2]
[425224160,1781626146000,-316.0,0.00014992,2]
[425224161,1781626146000,-151.0,0.00014992,2]
[425224162,1781626146000,-310.0,0.00014992,2]
[425224163,1781626146000,-314.0,0.00014992,2]
[425224165,1781626146000,-309.0,0.00014992,2]
[425224164,1781626146000,-151.0,0.00014992,2]
[425224157,1781626146000,-151.0,0.00014992,2]
[425224166,1781626147000,-317.0,0.00014992,2]
[425224169,1781626147000,-250.0,0.00014992,2]
[425224168,1781626147000,-200.0,0.00014992,7]
[425224170,1781626147000,-3000.0,0.00014992,2]
[425224167,1781626147000,-200.0,0.00014992,2]
[425224172,1781626147000,-200.0,0.00014997,2]
[425224173,1781626147000,-484.12948097,0.00014999,2]
[425224175,1781626147000,-308.45851341,0.00014999,2]
[425224176,1781626147000,-1990155.41200562,0.00015,2]
[425224174,1781626147000,-500.0,0.00014999,2]
[425224171,1781626147000,-200.0,0.00014997,2]
[425224177,1781626150000,200.0,0.0001171,2]
[425224178,1781626168000,2000.0,0.00013398,2]
[425224179,1781626187000,2500.0,0.00013398,2]
[425224180,1781626199000,322.56,0.00011,2]
[425224181,1781626209000,500.0,0.00013698,2]
[425224182,1781626209000,500.0,0.00013698,2]
[425224183,1781626209000,500.0,0.00013698,2]
[425224184,1781626209000,500.0,0.00013698,2]
[425224185,1781626210000,384.67354223,0.00013698,2]
[425224187,1781626221000,6078.0,0.00014006,2]
[425224186,1781626221000,6078.0,0.00011006,2]
[425224188,1781626224000,161.99,0.0001451,2]
[425224214,1781626233000,-314.0,0.0001499,2]
[425224213,1781626233000,-151.0,0.0001499,2]
[425224216,1781626233000,-300.0,0.00014991,2]
[425224215,1781626233000,-311.0,0.0001499,2]
[425224217,1781626233000,-200.0,0.00014991,2]
[425224220,1781626233000,-313.0,0.00014992,2]
[425224222,1781626233000,-317.0,0.00014992,2]
[425224218,1781626233000,-318.0,0.00014992,2]
[425224219,1781626233000,-151.0,0.00014992,2]
[425224221,1781626233000,-152.0,0.00014992,2]
[425224224,1781626233000,-151.0,0.00014992,2]
[425224223,1781626233000,-313.0,0.00014992,2]
[425224225,1781626233000,-312.0,0.00014992,2]
[425224246,1781626234000,-500.0,0.00014999,2]
[425224245,1781626234000,-500.0,0.00014999,2]
[425224252,1781626234000,-500.0,0.00014999,2]
[425224247,1781626234000,-500.0,0.00014999,2]
[425224244,1781626234000,-500.0,0.00014999,2]
[425224243,1781626234000,-500.0,0.00014999,2]
[425224251,1781626234000,-500.0,0.00014999,2]
[425224254,1781626234000,-500.0,0.00014999,2]
[425224264,1781626234000,-500.0,0.00014999,2]
[425224248,1781626234000,-500.0,0.00014999,2]
[425224253,1781626234000,-500.0,0.00014999,2]
[425224255,1781626234000,-500.0,0.00014999,2]
[425224256,1781626234000,-500.0,0.00014999,2]
[425224261,1781626234000,-500.0,0.00014999,2]
[425224249,1781626234000,-500.0,0.00014999,2]
[425224250,1781626234000,-500.0,0.00014999,2]
[425224227,1781626234000,-310.0,0.00014992,2]
[425224236,1781626234000,-160.0,0.00014992,2]
[425224258,1781626234000,-500.0,0.00014999,2]
[425224226,1781626234000,-150.0,0.00014992,2]
[425224229,1781626234000,-309.0,0.00014992,2]
[425224230,1781626234000,-315.0,0.00014992,2]
[425224232,1781626234000,-150.0,0.00014992,2]
[425224228,1781626234000,-151.0,0.00014992,2]
[425224231,1781626234000,-313.0,0.00014992,2]
[425224234,1781626234000,-152.0,0.00014992,2]
[425224238,1781626234000,-500.0,0.00014999,2]
[425224241,1781626234000,-500.0,0.00014999,2]
[425224239,1781626234000,-500.0,0.00014999,2]
[425224237,1781626234000,-200.0,0.00014996,2]
[425224233,1781626234000,-317.0,0.00014992,2]
[425224235,1781626234000,-321.0,0.00014992,2]
[425224242,1781626234000,-500.0,0.00014999,2]
[425224240,1781626234000,-500.0,0.00014999,2]
[425224262,1781626234000,-500.0,0.00014999,2]
[425224271,1781626234000,-500.0,0.00014999,2]
[425224259,1781626234000,-500.0,0.00014999,2]
[425224283,1781626234000,-500.0,0.00014999,2]
[425224280,1781626234000,-500.0,0.00014999,2]
[425224282,1781626234000,-500.0,0.00014999,2]
[425224281,1781626234000,-500.0,0.00014999,2]
[425224284,1781626234000,-500.0,0.00014999,2]
[425224288,1781626234000,-594302.51891076,0.00015,2]
[425224290,1781626234000,-28639.77774155,0.00015,2]
[425224291,1781626234000,-23422.14580415,0.00015,2]
[425224294,1781626234000,-470.35144812,0.00015,2]
[425224289,1781626234000,-13783.57211967,0.00015,2]
[425224293,1781626234000,-485.26362913,0.00015,2]
[425224292,1781626234000,-501.55199785,0.00015,2]
[425224295,1781626234000,-1850.0,0.00015,2]
[425224296,1781626234000,419.0,0.00011006,2]
[425224257,1781626234000,-500.0,0.00014999,2]
[425224279,1781626234000,-500.0,0.00014999,2]
[425224286,1781626234000,-500.0,0.00014999,2]
[425224285,1781626234000,-500.0,0.00014999,2]
[425224287,1781626234000,-286.10397407,0.00014999,2]
[425224278,1781626234000,-500.0,0.00014999,2]
[425224260,1781626234000,-500.0,0.00014999,2]